[Event "XTX Markets London Classic-Elite 2024"]
[Site "London"]
[Date "2024.11.30"]
[Round "2.2"]
[White "Royal, Shreyas"]
[Black "Jones, Gawain C B"]
[Result "0-1"]
[WhiteElo "2520"]
[BlackElo "2639"]
[Annotator "TA"]
[PlyCount "160"]
[EventDate "2024.??.??"]
[TimeControl "60"]

{[%evp 90,160,-212,-212,-212,-212,-212,-212,-212,-293,-212,-358,-216,-358,-358,-358,-338,-338,-338,-358,-358,-350,-350,-343,-343,-350,-343,-343,-336,-329,-329,-336,-251,-336,-336,-336,-336,-322,-269,-279,-268,-443,-443,-422,-406,-531,-505,-1468,-1460,-1457,-1450,-1450,-1442,-1435,-1435,-1353,-1347,-1168,-1114,-29965,-29962,-29957,-3916,-29962,-29965,-29974,-29975,-29975,-29976,-29976,-29977,-29975,-29973]} 1. d4 {[%emt 0:00:05]} Nf6 {[%emt 0:00:07]} 2. c4 {[%emt 0:00:05]} d6 {[%emt 0:00:06]} 3. Nf3 {[%emt 0:00:24]} g6 {[%emt 0:00:13]} 4. Nc3 {[%emt 0:00:06]} Bg7 {[%emt 0:00:04]} 5. e4 {[%emt 0:00:23]} O-O {[%emt 0:00:14]} 6. Be2 {[%emt 0:00:34]} e5 {[%emt 0:00:07]} 7. O-O {[%emt 0:00:06]} h6 {[%emt 0:02:02]} 8. Re1 {[%emt 0:07:24] 8.Re1 is better than 8.dxe5.} Nbd7 {[%emt 0:00:38]} 9. Qc2 {[%emt 0:00:41] E95: King's Indian: Classical: 7...Nbd7 8 Re1.} Re8 {[%emt 0:00:26]} 10. dxe5 {[%emt 0:00:41]} ({RR} 10. d5 a5 11. Be3 Ng4 12. Bd2 Nc5 13. h3 Nf6 14. Be3 Bd7 15. a3 a4 16. Bxc5 dxc5 17. Rad1 Qe7 18. Nh2 Red8 19. Ng4 Ne8 20. Ne3 h5 21. Nb5 Ra6 22. Rd3 Bh6 23. d6 cxd6 24. Nd5 Qf8 {Nguyen,T (2656)-Niemann,H (2698) Almaty KAZ 2022 0-1 (46)}) ({RR} 10. d5 a5 11. a3 Nc5 12. b3 a4 13. b4 Nb3 14. Ra2 Nd4 15. Qd1 Nxe2+ 16. Raxe2 Bd7 17. h3 Nh5 18. b5 Nf4 19. Bxf4 exf4 20. e5 Bf5 21. Qd2 dxe5 22. Nxe5 Qd6 23. Qxf4 Qxa3 24. Nb1 Qb4 {Sahil,T (2186)-Golubev,M (2461) chess.com INT 2024 0-1 (33)}) 10... Nxe5 $146 {[%emt 0:00:43][%mdl 8] A relevant novelty.} ({Predecessor:} 10... dxe5 11. Be3 c6 12. Na4 Qe7 13. c5 Nf8 14. Rad1 Bg4 15. b4 Bxf3 16. Bxf3 Ne6 {1-0 Yilmaz,M (2650)-Kadric,D (2584) EU-chT 24th Budva 2023 (3.2)}) ({RR} 10... dxe5 11. Be3 c6 12. Rad1 Qc7 13. h3 Nh5 14. c5 Nf4 15. Bc4 Nf8 16. Rd6 Be6 17. Bf1 Nd7 18. b4 Bf8 19. Rd2 a5 20. a3 axb4 21. axb4 Ra3 22. Qc1 Rea8 23. Nb1 Ra1 24. Rb2 Be7 25. Kh2 {Budisavljevic,L (2502)-Kavutskiy,K (2393) Saint Louis USA 2023 1-0 (46)}) ({RR} 10... dxe5 11. Be3 c6 12. Na4 Qe7 13. c5 Nf8 14. Rad1 Bg4 15. b4 Bxf3 16. Bxf3 Ne6 17. Nb2 h5 18. Nc4 Ng4 19. Bxg4 hxg4 20. Nd6 Rf8 21. Qe2 f5 22. Bc1 a5 23. b5 Kh7 24. bxc6 bxc6 25. Bb2 {Yilmaz,M (2650)-Kadric,D (2584) Budva MNE 2023 1-0 (34)}) 11. Nxe5 {[%emt 0:06:56]} dxe5 {[%emt 0:00:05]} 12. Rd1 {[%emt 0:00:07]} Bd7 {[%emt 0:02:13]} 13. Nd5 {[%emt 0:02:39]} Nh7 {[%emt 0:03:51]} 14. Be3 {[%emt 0:01:24]} Nf8 {[%emt 0:07:48]} 15. Qd2 {[%emt 0:13:26]} c6 {[%emt 0:02:41]} 16. Nc3 {[%emt 0:00:36]} h5 {[%emt 0:00:25]} 17. Qd6 {[%emt 0:02:57]} Bf6 {[%emt 0:04:35]} 18. Na4 {[%emt 0:08:57]} b6 {[%emt 0:01:34]} 19. b4 {[%emt 0:13:12]} Bg5 {[%emt 0:04:29]} 20. c5 {[%emt 0:02:15]} Bxe3 {[%emt 0:03:54]} 21. fxe3 {[%emt 0:01:48]} Qg5 {[%emt 0:00:29]} 22. Qd2 {[%emt 0:00:07]} Red8 {[%emt 0:02:53]} 23. Bf3 {[%emt 0:04:23]} b5 {[%emt 0:08:53]} 24. Nc3 {[%emt 0:02:03]} a5 {[%emt 0:01:42]} 25. a3 {[%emt 0:02:51]} axb4 {[%emt 0:10:42]} 26. axb4 {[%emt 0:00:02]} Bg4 {[%emt 0:04:41]} 27. Qf2 {[%emt 0:00:32]} Rxa1 {[%emt 0:07:13]} 28. Rxa1 {[%emt 0:00:01]} Rd3 {[%emt 0:00:51]} 29. Nd1 {[%emt 0:00:22]} Be6 {[%emt 0:12:01]} 30. h4 {[%emt 0:07:59]} Qd8 {[%emt 0:01:21]} 31. Qg3 {[%emt 0:00:25]} Bb3 {[%emt 0:02:09]} 32. Nf2 {[%emt 0:00:39]} Rxe3 {[%emt 0:01:04]} 33. Qxe5 {[%emt 0:00:17]} Ba4 {[%emt 0:05:37]} 34. Qf4 {[%emt 0:05:13]} Qd4 {[%emt 0:00:48]} 35. Rc1 {[%emt 0:03:22]} Rd3 {[%emt 0:02:18]} 36. Qd6 {[%emt 0:05:31]} Qxd6 {[%emt 0:01:13]} 37. cxd6 {[%emt 0:00:02]} Rxd6 {[%emt 0:00:06]} 38. e5 {[%emt 0:00:03]} Rd4 {[%emt 0:00:22]} 39. Rxc6 {[%emt 0:01:42]} Rxb4 {[%emt 0:00:58]} 40. Ne4 {[%emt 0:01:03]} Bb3 {[%emt 0:05:12]} 41. Nf6+ {[%emt 0:13:19]} Kg7 {[%emt 0:03:06]} 42. Rb6 {[%emt 0:00:08]} Be6 {[%emt 0:07:18]} 43. Bc6 {[%emt 0:00:06]} Rxh4 {[%emt 0:01:18]} 44. Rxb5 {[%emt 0:04:02]} Rc4 {[%emt 0:00:57]} 45. Bf3 {[%emt 0:01:19]} Nd7 {[%emt 0:02:24]} 46. Nxd7 {[%emt 0:01:15]} Bxd7 {[%emt 0:00:05]} 47. Ra5 {[%emt 0:00:02]} Be6 {[%emt 0:01:08]} 48. Kf2 {[%emt 0:01:36]} Rc2+ {[%emt 0:02:30]} 49. Ke3 {[%emt 0:04:57]} Kh6 {[%emt 0:01:28]} 50. Kd3 {[%emt 0:03:32]} (50. g3 $142) 50... Rb2 {[%emt 0:00:59]} 51. Kc3 {[%emt 0:01:02]} (51. g3 $142) 51... Rf2 $19 {[%emt 0:01:05]} 52. Kd4 {[%emt 0:00:41]} h4 {[%emt 0:01:42]} 53. Ke3 {[%emt 0:02:10]} Rb2 {[%emt 0:00:15]} 54. Ra4 {[%emt 0:02:28]} Kg5 {[%emt 0:00:24]} 55. Be2 {[%emt 0:01:13]} Rb3+ {[%emt 0:01:24]} 56. Kf2 {[%emt 0:00:05]} Rc3 {[%emt 0:01:01]} 57. Re4 {[%emt 0:00:08]} Ra3 {[%emt 0:06:14]} 58. Rb4 {[%emt 0:00:04]} Ra5 {[%emt 0:00:54]} 59. Bb5 {[%emt 0:00:04]} Ra2+ {[%emt 0:02:55]} 60. Be2 {[%emt 0:00:01]} Bd5 {[%emt 0:01:51]} 61. Rd4 {[%emt 0:02:30]} Bb7 {[%emt 0:00:19]} (61... Bxg2 62. Rg4+ Kf5 63. Rxg2 $11) 62. Ke3 {[%emt 0:01:04]} Bc8 {[%emt 0:00:49]} (62... Bxg2 63. Rg4+ Kf5 64. Rxg2 Kxe5 65. Rg4 $11) 63. Rb4 {[%emt 0:01:00]} Ra5 {[%emt 0:00:19]} 64. Bb5 {[%emt 0:00:41]} Bb7 {[%emt 0:00:30]} 65. Rb2 $2 {[%emt 0:01:17]} (65. e6 fxe6 66. Be2 Re5+ (66... Bxg2 67. Rg4+ Kf6 68. Rxg2 $11) 67. Kf2) 65... Ba8 $19 {[%emt 0:01:41]} 66. Kf2 {[%emt 0:01:34]} Kf5 {[%emt 0:00:07]} 67. Bc4 {[%emt 0:00:08] [#]} Bd5 $1 {[%emt 0:00:32]} (67... Kxe5 68. Bxf7 Kf6 69. Be8 $11) 68. Bxd5 {[%emt 0:01:30]} (68. Bf1 $142 g5 (68... Kxe5 $2 69. g3 $19) 69. g3 hxg3+ (69... Kxe5 $2 70. gxh4 gxh4 71. Rb8 $19) 70. Kxg3 Ra3+ (70... Kxe5 $2 71. Re2+ Be4 72. Bg2 $19) 71. Kf2) 68... Rxd5 $19 {[%emt 0:00:03]} 69. Rb7 {[%emt 0:00:09]} Ke6 {[%emt 0:00:12]} (69... Kxe5 70. Rxf7 Rb5 71. Kg1 $11) 70. Kf3 {[%emt 0:00:03]} Rxe5 {[%emt 0:00:17]} 71. Rb4 {[%emt 0:00:14]} g5 {[%emt 0:01:19]} 72. Kg4 {[%emt 0:00:14]} f6 {[%emt 0:00:27]} 73. Rb2 {[%emt 0:01:10]} Re4+ {[%emt 0:00:13]} 74. Kh5 {[%emt 0:00:04]} Kf5 {[%emt 0:00:08]} 75. Rb5+ {[%emt 0:00:12]} Re5 {[%emt 0:00:34]} (75... Kf4 $142 76. Rb6 Kg3 77. Rxf6 Re5 (77... Kxg2 $2 78. Kxg5 h3 79. Rg6 $19) 78. Rc6 g4+ (78... Kxg2 $2 79. Kg4 $19) 79. Kg6 Kxg2 80. Kf6 Ra5 81. Ke6 g3 82. Ke7 Kh2 83. Kf6 h3 84. Kf7 g2 85. Re6 g1=Q (85... g1=B $2 86. Rf6 $19) 86. Re4 Kg3 87. Kf6 h2 88. Re8 Qd4+ (88... h1=R {gets mated.} 89. Rg8+ Kf4 90. Rxg1 Ra6+ 91. Kf7 Rxg1 92. Ke8 Rg7 93. Kf8 Rc7 94. Kg8 Ra8#) 89. Kf7 Rf5+ (89... h1=R {leads to mate.} 90. Rg8+ Kf3 91. Rg7 Qd7+ 92. Kf6 Rh6+ 93. Rg6 Rf5#) 90. Ke7 Re5+ (90... h1=Q 91. Rg8+ Kf4 92. Rg4+ Kxg4 93. Ke8 Qhe4#) 91. Kf7 Qf4+ (91... h1=R {is a self mate.} 92. Rg8+ Kf2 93. Rg5 Rh7+ 94. Kg6 Qe4+ 95. Kf6 Re6#) 92. Kg8 Rg5+ 93. Kh8 h1=Q#) 76. Rb3 {[%emt 0:00:09]} Re2 {[%emt 0:00:31]} 77. Rf3+ {[%emt 0:00:10]} Ke4 {[%emt 0:00:46]} 78. Rxf6 {[%emt 0:00:08]} Rxg2 {[%emt 0:00:05]} 79. Re6+ {[%emt 0:00:05]} Kf4 {[%emt 0:00:29]} 80. Rf6+ {[%emt 0:00:04]} Ke5 {[%emt 0:00:19]} 0-1

[Event "XTX Markets London Classic-Elite 2024"]
[Site "London"]
[Date "2024.11.30"]
[Round "2.3"]
[White "Vidit, Santosh Gujrathi"]
[Black "Hong, Andrew"]
[Result "1-0"]
[WhiteElo "2739"]
[BlackElo "2572"]
[Annotator "RC"]
[PlyCount "115"]
[EventDate "2024.??.??"]
[TimeControl "60"]

1. c4 {[%emt 0:00:29]} e5 {[%emt 0:01:09]} 2. d3 {[%emt 0:03:13]} Nc6 {[%emt 0:02:41]} 3. g3 {[%emt 0:04:14]} g6 {[%emt 0:00:41]} 4. Bg2 {[%emt 0:00:08]} Bg7 {[%emt 0:00:04]} 5. Nc3 {[%emt 0:00:23]} d6 {[%emt 0:00:07]} 6. Rb1 {[%emt 0:08:31]} a5 {[%emt 0:03:20]} 7. a3 {[%emt 0:00:10]} h5 $146 {[%emt 0:06:23]} ({RR} 7... Be6 8. b4 axb4 9. axb4 Qd7 10. e3 Nge7 11. Nd5 Bxd5 12. cxd5 Na7 13. Bb2 Nb5 14. Ne2 O-O 15. O-O f5 16. f4 Ra2 17. Qb3 Rfa8 18. fxe5 Bxe5 19. d4 Bg7 20. Nf4 Bh6 21. e4 fxe4 22. Bxe4 {Gupta,S (2429)-Rastbod,A (2321) Chess.com INT 2020 1-0 (31)}) ({RR} 7... Be6 8. b4 axb4 9. axb4 Qd7 10. b5 Nd8 11. h4 Nf6 12. Bg5 h6 13. Bxf6 Bxf6 14. Nd5 Bg7 15. h5 g5 16. b6 Bxd5 17. cxd5 O-O 18. bxc7 Qxc7 19. g4 f5 20. gxf5 Rxf5 21. Be4 Qc3+ 22. Kf1 {Wagner,D (2611)-Erzhanov,A (2156) chess.com INT 2024 0-1 (41)}) 8. Nf3 {[%emt 0:04:10]} Nd4 {[%emt 0:06:59]} 9. Nxd4 {[%emt 0:07:54]} exd4 {[%emt 0:02:44]} 10. Ne4 {[%emt 0:00:06]} h4 {[%emt 0:02:18]} 11. O-O {[%emt 0:03:09]} hxg3 {[%emt 0:07:18]} 12. hxg3 {[%emt 0:13:22]} Bg4 {[%emt 0:02:16]} 13. Re1 {[%emt 0:04:39]} Qc8 {[%emt 0:11:01]} 14. b4 {[%emt 0:06:33]} Kf8 {[%emt 0:12:52]} 15. Qb3 {[%emt 0:06:50]} a4 {[%emt 0:03:17]} 16. Qc2 {[%emt 0:00:58]} Qf5 {[%emt 0:11:57]} 17. f3 {[%emt 0:04:39]} Bh3 {[%emt 0:01:42]} 18. e3 {[%emt 0:00:26]} Ne7 {[%emt 0:03:41]} 19. g4 {[%emt 0:01:28]} Qd7 {[%emt 0:02:18]} 20. Bb2 {[%emt 0:10:09]} d5 {[%emt 0:07:43]} 21. Nc5 {[%emt 0:00:32]} Qc6 {[%emt 0:00:28]} 22. Bxd4 {[%emt 0:01:16]} Bxd4 {[%emt 0:02:16]} 23. exd4 {[%emt 0:00:10]} b6 {[%emt 0:00:44]} 24. Qe2 {[%emt 0:03:27]} Qd6 {[%emt 0:00:35]} 25. Qe5 {[%emt 0:01:52]} Qxe5 {[%emt 0:01:51]} 26. Nd7+ {[%emt 0:00:05]} Kg7 {[%emt 0:00:43]} 27. Rxe5 {[%emt 0:00:50]} Nc6 {[%emt 0:03:16]} 28. Rxd5 {[%emt 0:01:08]} Bxg2 {[%emt 0:01:26]} 29. Kxg2 {[%emt 0:00:11]} Rae8 {[%emt 0:01:42]} 30. b5 {[%emt 0:09:24]} Re2+ {[%emt 0:00:12]} 31. Kg3 {[%emt 0:00:08]} Nd8 {[%emt 0:00:25]} 32. Re5 {[%emt 0:01:14]} Ra2 {[%emt 0:01:15]} 33. d5 {[%emt 0:01:51]} Rxa3 {[%emt 0:00:19]} 34. d4 {[%emt 0:01:11]} Nb7 {[%emt 0:00:26]} 35. Re7 {[%emt 0:00:58]} g5 {[%emt 0:01:04]} 36. c5 {[%emt 0:00:30]} Ra2 {[%emt 0:00:17]} 37. Re5 {[%emt 0:00:38]} f6 {[%emt 0:00:19]} 38. Re7+ {[%emt 0:00:07]} Kg6 {[%emt 0:00:01]} 39. Rbe1 {[%emt 0:00:28]} Nd8 {[%emt 0:00:32]} 40. Re8 {[%emt 0:01:28]} Rxe8 {[%emt 0:01:25]} 41. Rxe8 {[%emt 0:30:01]} Kf7 {[%emt 0:02:54]} 42. Rxd8 {[%emt 0:00:00]} Ke7 {[%emt 0:00:11]} 43. Rh8 {[%emt 0:00:00]} Kxd7 {[%emt 0:01:33]} 44. d6 {[%emt 0:00:00]} bxc5 {[%emt 0:03:42]} 45. dxc5 {[%emt 0:00:00]} cxd6 {[%emt 0:04:08]} 46. c6+ {[%emt 0:00:00]} Kc7 {[%emt 0:00:16]} 47. Rh7+ {[%emt 0:00:00]} Kb6 {[%emt 0:00:35]} 48. Rb7+ {[%emt 0:00:00]} Ka5 {[%emt 0:00:08]} 49. c7 {[%emt 0:00:00]} Rc2 {[%emt 0:00:18]} 50. b6 {[%emt 0:00:00]} a3 {[%emt 0:07:12]} 51. Rb8 {[%emt 0:00:00]} a2 {[%emt 0:01:00]} 52. c8=Q {[%emt 0:00:12]} a1=Q {[%emt 0:01:04]} 53. Ra8+ {[%emt 0:01:01]} Kb4 {[%emt 0:00:21]} 54. Qxc2 {[%emt 0:00:05]} Qg1+ {[%emt 0:02:46]} 55. Qg2 {[%emt 0:00:10]} Qc1 {[%emt 0:01:37]} 56. b7 {[%emt 0:01:27]} Qe1+ {[%emt 0:00:40]} 57. Qf2 {[%emt 0:00:21]} Qe5+ {[%emt 0:00:11]} 58. Kg2 {[%emt 0:00:09]} 1-0

[Event "XTX Markets London Classic-Elite 2024"]
[Site "London"]
[Date "2024.11.30"]
[Round "2.4"]
[White "Vitiugov, Nikita"]
[Black "Mamedyarov, Shakhriyar"]
[Result "1/2-1/2"]
[WhiteElo "2668"]
[BlackElo "2738"]
[Annotator "TA"]
[PlyCount "47"]
[EventDate "2024.??.??"]
[TimeControl "60"]

{[%evp 18,47,0,0,14,0,0,0,0,0,0,0,0,0,0,0,0,0,0,0,0,0,0,0,0,0,55,0,0,0,41,0]} 1. d4 {[%emt 0:00:14]} d5 {[%emt 0:00:34]} 2. c4 {[%emt 0:00:12]} dxc4 {[%emt 0:01:03]} 3. Nf3 {[%emt 0:00:36]} Nf6 {[%emt 0:00:54]} 4. e3 {[%emt 0:00:44][%cal Be2e3,Be3e4,Be4e5][%mdl 32]} e6 {[%emt 0:00:09]} 5. Bxc4 {[%emt 0:00:08]} c5 {[%emt 0:00:06]} 6. O-O {[%emt 0:00:12]} Nc6 {[%emt 0:02:00]} 7. Qe2 {[%emt 0:07:28]} a6 {[%emt 0:01:18]} 8. dxc5 {[%emt 0:00:42]} Bxc5 {[%emt 0:00:58]} 9. e4 {[%emt 0:00:55]} b5 {[%emt 0:05:18]} 10. Bb3 {[%emt 0:00:54]} Bb7 {[%emt 0:00:07]} 11. Nc3 {[%emt 0:01:59]} Nd4 {[%emt 0:06:09]} ({RR} 11... Qb6 12. Bf4 Nd4 13. Nxd4 Bxd4 14. Rad1 O-O 15. Rd3 Bxc3 16. Rxc3 Nxe4 17. Rh3 e5 18. Qh5 Qg6 19. Qxg6 hxg6 20. Bxe5 Nd2 21. Rd1 Nxb3 22. axb3 {½-½ (22) Gozzoli,Y (2602)-Borisek,J (2591) Chess.com INT 2021}) 12. Nxd4 {[%emt 0:00:24]} Bxd4 {[%emt 0:00:02] The position is equal.} 13. e5 {[%emt 0:03:59] [#] Black must now prevent Rd1.} Nd5 $1 {[%emt 0:04:52][%cal Bf6d5,Bd5f4,Bf4g6][%mdl 32]} 14. Rd1 $146 {[%emt 0:03:07][%cal Bf1d1,Bd1d3,Bd3g3][%mdl 32]} ({RR} 14. Nxd5 Bxd5 15. Rd1 Bxb3 16. axb3 Qb6 17. Qg4 Rd8 18. Be3 Bxe3 19. Rxd8+ Kxd8 20. Qxg7 Bxf2+ 21. Kh1 Re8 22. Qxf7 Bd4 23. Rd1 Qc5 24. Qf4 Rf8 25. Qxd4+ Qxd4 26. Rxd4+ Kc7 27. Kg1 Rf5 28. Rd6 Rxe5 {Can,E (2599)-Kacharava,N (2428) Batumi 2019 ½-½ (42)}) 14... Bxc3 {[%emt 0:02:42]} 15. bxc3 {[%emt 0:00:26]} O-O {[%emt 0:00:28]} 16. Rd3 {[%emt 0:11:06]} Qh4 {[%emt 0:11:09]} 17. Rg3 {[%emt 0:07:50] [#] Threatens to win with Bxd5.} Nf4 {[%emt 0:04:09]} 18. Qe3 {[%emt 0:01:34]} Ng6 {[%emt 0:00:58]} 19. Ba3 {[%emt 0:01:36]} Rfc8 {[%emt 0:03:29]} 20. Bd6 {[%emt 0:01:10]} Qf4 {[%emt 0:11:38]} 21. Qe2 {[%emt 0:06:52]} Qh4 {[%emt 0:04:03]} (21... Qf5 $11) 22. Qe3 {[%emt 0:08:24]} ({Better is} 22. f4 $1 $14) 22... Qf4 {[%emt 0:00:22]} 23. Qe2 {[%emt 0:00:05]} Qh4 {[%emt 0:01:48]} 24. Qe3 {[%emt 0:41:53] A rather calm draw. Weighted Error Value: White=0.04 (flawless) /Black=0.06 (flawless) . Mistake: 	White=1 	Black=1 Inaccurate: 	White=1 	Black=1 OK: 	White=10 	Black=7 Best: 	--- 	Black=2 Strong: 	--- 	Black=1} 1/2-1/2

[Event "XTX Markets London Classic-Elite 2024"]
[Site "London"]
[Date "2024.12.01"]
[Round "3.1"]
[White "Mamedyarov, Shakhriyar"]
[Black "Ju, Wenjun"]
[Result "1-0"]
[WhiteElo "2738"]
[BlackElo "2563"]
[Annotator "TA"]
[PlyCount "85"]
[EventDate "2024.??.??"]
[TimeControl "60"]

{[%evp 11,85,0,0,0,4,6,20,23,21,0,0,4,0,12,18,8,26,37,37,39,63,68,108,109,195,141,154,103,104,100,218,116,86,77,111,114,117,107,114,87,89,73,98,126,120,93,97,22,26,21,21,0,1,-45,-45,-45,-44,-31,8,10,8,12,111,111,105,99,187,161,363,365,345,363,354,354,454,495]} 1. Nf3 {[%emt 0:00:03]} d5 {[%emt 0:00:10]} 2. g3 {[%emt 0:00:09]} g6 {[%emt 0:02:25]} 3. Bg2 {[%emt 0:00:33]} Bg7 {[%emt 0:00:04]} 4. O-O {[%emt 0:00:24]} e5 {[%emt 0:07:00]} 5. d3 {[%emt 0:00:06]} Ne7 {[%emt 0:01:32]} 6. c4 {[%emt 0:00:12]} c6 {[%emt 0:08:45]} 7. e4 {[%emt 0:01:45]} O-O {[%emt 0:02:19]} ({RR} 7... dxe4 8. dxe4 Qxd1 9. Rxd1 Be6 10. b3 f6 11. Nc3 Na6 12. Be3 h5 13. Ne1 h4 14. Nd3 hxg3 15. hxg3 Kf7 16. f4 exf4 17. gxf4 Rhd8 18. Kf2 Rd7 19. Nc5 Nxc5 20. Bxc5 b6 21. Rxd7 Bxd7 22. Be3 {Ding,L (2799)-Aronian,L (2782) chess24.com INT 2021 ½-½ (53)}) 8. b4 {[%emt 0:11:18]} dxe4 $146 {[%emt 0:19:34]} ({RR} 8... a5 9. b5 dxc4 10. dxc4 Be6 11. Qe2 h6 12. Rd1 Qc7 13. Ba3 Re8 14. Nc3 Nd7 15. Rac1 c5 16. Nd5 Bxd5 17. cxd5 Nc8 18. Bh3 b6 19. Nd2 Nd6 20. Bb2 Nf8 21. a4 h5 22. Nc4 Nxc4 23. Rxc4 {Glashausser,S (1973)-Keller,P (2289) chess.com INT 2024 0-1 (42)}) ({RR} 8... d4 9. a4 c5 10. bxc5 Nec6 11. Nbd2 Be6 12. Rb1 Nd7 13. Rxb7 Nxc5 14. Rb5 Nxd3 15. Ba3 a6 16. Rb3 Nxf2 17. Rxf2 Re8 18. h4 Bh6 19. Ng5 Bxg5 20. hxg5 Qxg5 21. Rb6 Rac8 22. Qf3 d3 23. Bd6 {Oparin,G (2674)-Aronian,L (2785) Chess.com INT 2022 ½-½ (53)}) 9. dxe4 {[%emt 0:00:09] The position is equal.} Nf5 {[%emt 0:00:18]} 10. Bb2 {[%emt 0:06:06]} (10. exf5 e4 11. Qxd8 Rxd8 $15) 10... Nd4 {[%emt 0:02:48]} 11. Nxd4 {[%emt 0:00:12]} exd4 {[%emt 0:00:02]} 12. Nd2 {[%emt 0:00:05]} a5 {[%emt 0:01:38]} 13. b5 {[%emt 0:06:33]} a4 {[%emt 0:06:05]} 14. Ba3 {[%emt 0:01:08]} Re8 {[%emt 0:00:07]} 15. f4 {[%emt 0:00:02]} cxb5 {[%emt 0:13:56]} 16. cxb5 {[%emt 0:00:07]} d3 {[%emt 0:00:04]} 17. e5 {[%emt 0:05:42]} f5 {[%emt 0:12:28] Prevents Ne4.} (17... Qd4+ $16 18. Rf2 Bg4) 18. Kh1 {[%emt 0:05:06]} (18. Nf3 $18) 18... Be6 $16 {[%emt 0:00:05]} 19. Bxb7 {[%emt 0:02:38]} (19. Qf3 $142) 19... Ra5 {[%emt 0:02:57]} 20. Bg2 {[%emt 0:02:45]} Rxb5 {[%emt 0:00:02] [#]} (20... Bf8 $16 {might work better.} 21. Bxf8 Rxf8) 21. Bd6 {[%emt 0:00:46]} (21. Qxa4 $2 Ra5 22. Qd1 (22. Qb4 $2 Bf8 $19) 22... Rxa3 $19) ({Only move:} 21. Nc4 $1 $18 {[%cal Rc4d6]}) 21... Bf8 {[%emt 0:01:57]} 22. Qxa4 {[%emt 0:04:57]} Qa5 {[%emt 0:04:06]} 23. Qxa5 {[%emt 0:04:41]} Rxa5 {[%emt 0:00:02] [#]} 24. Bxf8 $1 {[%emt 0:06:22]} Kxf8 {[%emt 0:00:03]} 25. Nb3 {[%emt 0:00:04]} Ra3 {[%emt 0:03:40][%cal Ob8a6]} 26. Nc5 {[%emt 0:01:47]} Nd7 {[%emt 0:01:55]} 27. Nxe6+ {[%emt 0:03:25]} Rxe6 {[%emt 0:00:04]} 28. Rfc1 {[%emt 0:00:03] Against Nc5} Rea6 {[%emt 0:03:26]} 29. Rc8+ {[%emt 0:04:02]} (29. Rc7 $16 Rxa2 30. Rxa2 Rxa2 31. Rxd7 Ra1+ 32. Bf1 Rxf1+ 33. Kg2) 29... Ke7 $11 {[%emt 0:00:09]} 30. Bc6 {[%emt 0:00:27] Rd1 is the strong threat.} Ra7 $1 {[%emt 0:02:56]} 31. Rh8 {[%emt 0:10:23]} Nf8 {[%emt 0:01:42][%cal Oa3c3] White must now prevent ...Rc3!} 32. Bd5 {[%emt 0:00:11]} (32. Rg8 $11 {deserves consideration.}) 32... d2 $15 {[%emt 0:02:45][%mdl 1024] Black has compensation.} 33. Rd1 {[%emt 0:07:23][%cal Od5b3]} Rd3 {[%emt 0:00:02]} 34. Rg8 {[%emt 0:00:55]} Ne6 {[%emt 0:01:33] Against Rg7+} (34... Ke8 $5 35. Bc4 Rc3 36. Bb5+ Kf7 37. Rxf8+ (37. Rh8 $2 Rc1 $19) 37... Kxf8 38. Rxd2 Ke7 $15) 35. Bc4 $36 {[%emt 0:00:50][%mdl 2048] White has good play.} Rd4 {[%emt 0:00:09]} 36. Rc8 {[%emt 0:02:05]} ({Don't blunder} 36. Rh8 $2 Rxc4 37. Rxd2 (37. Rxh7+ $2 {too greedy.} Kf8 $19) 37... Nf8 $19) 36... Nc7 {[%emt 0:01:05]} (36... g5 $11 {remains equal.}) 37. Bb3 $16 {[%emt 0:00:23]} Kd7 {[%emt 0:00:27]} 38. Rh8 {[%emt 0:01:11][%cal Oh1g2]} h5 {[%emt 0:00:05]} (38... Kc6 $16) 39. Kg2 {[%emt 0:03:36] Kf3 would now be deadly.} Kc6 $2 {[%emt 0:00:59]} (39... Ra3) 40. Kf2 $18 {[%emt 0:02:17]} Nb5 {[%emt 0:00:05]} 41. Rc8+ {[%emt 0:31:27]} ({Weaker is} 41. Ke3 Rad7 $18) 41... Kb6 {[%emt 0:02:02]} 42. a4 {[%emt 0:00:00]} Nc7 {[%emt 0:03:32]} 43. Ke3 {[%emt 0:00:00][%csl Bd2,Bd4] Weighted Error Value: White=0.14 (very precise) /Black=0.31. Mistake: 	White=5 	Black=5 Inaccurate: 	--- 	Black=3 OK: 	White=15 	Black=12 Best: 	White=5 	Black=3 Strong: 	White=1 	Black=1} 1-0